bitfinex/quotes_SOLUSD_20241020
["timestamp","ask_amount","ask_price","bid_price","bid_amount"]
[1729401676395,23.776884,160.04,160.0,5.6248]
[1729401679924,5.6232,160.05,159.99,0.6210045]
[1729401679925,0.79042144,160.06,159.99,0.6210045]
[1729401680216,0.79042144,160.06,160.02,14.0599]
[1729401681419,23.776884,160.05,160.02,14.0599]
[1729401681599,23.776884,160.05,160.02,19.6841]
[1729401693627,23.776884,160.05,160.02,14.0599]
[1729401693805,23.776884,160.05,159.99,0.6210045]
[1729401694808,29.400084,160.05,160.0,5.6249]
[1729401697128,23.776884,160.05,159.99,0.6210045]
[1729401697331,23.776884,160.02,159.99,0.6210045]
[1729401698527,24.60823207,160.02,159.99,0.6210045]
[1729401698922,30.23273207,160.02,159.99,0.6210045]
[1729401699431,23.776884,160.0,159.99,0.6210045]
[1729401700324,29.401884,160.0,159.99,0.6210045]
[1729401700909,23.776884,160.0,159.99,0.6210045]
[1729401707619,29.401884,160.0,159.99,0.6210045]
[1729401722434,50.671984,160.0,159.99,0.6210045]
[1729401722633,50.871984,160.0,159.99,0.6210045]
[1729401722838,80.871984,160.0,159.99,0.6210045]
[1729401725733,74.487184,160.0,159.99,0.6210045]
[1729401725935,30.0,160.0,159.99,0.6210045]
[1729401727031,5.7247,160.01,159.99,0.6210045]
[1729401727446,23.776884,160.0,159.99,0.6210045]
[1729401730751,29.401884,160.0,159.99,0.6210045]
[1729401731449,29.501884,160.0,159.99,0.6210045]
[1729401732648,29.401884,160.0,159.99,0.6210045]
[1729401733852,29.501884,160.0,159.99,0.6210045]
[1729401734550,29.401884,160.0,159.99,0.6210045]
[1729401734931,29.501884,160.0,159.99,0.6210045]
[1729401744361,29.401884,160.0,159.99,0.6210045]
[1729401744544,0.93134807,160.02,159.99,0.6210045]
[1729401744752,6.45564807,160.02,159.99,0.6210045]
[1729401745140,6.55564807,160.02,159.99,0.6210045]
[1729401745359,6.45564807,160.02,159.99,0.6210045]
[1729401745767,0.83134807,160.02,159.99,0.6210045]
[1729401746142,0.83134807,160.02,160.01,5.6246]
[1729401747367,0.83134807,160.02,160.01,25.6246]
[1729401749951,0.83134807,160.02,160.0,14.0621]
[1729401750158,0.83134807,160.02,160.0,19.6869]
[1729401752760,23.776884,160.01,159.99,0.6210045]
[1729401754464,29.401484,160.01,159.99,0.6210045]
[1729401756747,23.776884,160.01,159.99,0.6210045]
[1729401759163,29.401484,160.01,159.99,0.6210045]
[1729401759774,29.401884,160.0,159.99,0.6210045]
[1729401761072,23.776884,160.0,159.99,0.6210045]
[1729401762177,29.501884,160.0,159.99,0.6210045]
[1729401762473,29.601884,160.0,159.99,0.6210045]
[1729401763662,29.501884,160.0,159.99,0.6210045]
[1729401763978,29.601884,160.0,159.99,0.6210045]
[1729401767370,59.601884,160.0,159.99,0.6210045]
[1729401777872,66.0349356,160.0,159.99,0.6210045]
[1729401780187,0.1,159.93,159.88,14.0723]
[1729401780370,0.1,159.93,159.88,19.7014]
[1729401780569,0.1,159.93,159.88,14.0723]
[1729401780786,5.7276,159.93,159.88,14.0723]
[1729401782290,29.504684,159.92,159.87,20.0]
[1729401782468,29.504684,159.92,159.87,25.6295]
[1729401782789,0.1,159.91,159.86,20.0]
[1729401783085,0.1,159.91,159.85,14.0756]
[1729401784394,0.1,159.91,159.86,5.6298]
[1729401788587,23.776884,159.9,159.86,5.6298]
[1729401789303,23.776884,159.9,159.85,19.7058]
[1729401789487,23.776884,159.89,159.86,5.6298]
[1729401790891,23.776884,159.89,159.85,14.0756]
[1729401791195,23.876884,159.89,159.85,19.7058]
[1729401791984,23.876884,159.89,159.83,0.6210045]
[1729401793481,29.505684,159.89,159.84,5.6306]
[1729401794905,0.1,159.88,159.84,5.6306]
[1729401802624,0.6973129,159.9,159.83,0.6210045]
[1729401802809,0.6973129,159.9,159.88,5.6289]
[1729401804312,23.776884,159.89,159.88,5.6289]
[1729401807604,0.6973129,159.9,159.89,5.6288]
[1729401809824,23.776884,159.93,159.85,28.1513]
[1729401810126,23.776884,159.93,159.91,5.6281]
[1729401815041,23.776884,159.93,159.92,5.6278]
[1729401815245,0.76405994,159.94,159.89,20.0]
[1729401815416,0.76405994,159.94,159.93,5.6274]
[1729401824939,0.76405994,159.94,159.91,14.0703]
[1729401825244,0.76405994,159.94,159.92,5.6277]
[1729401833461,23.776884,159.96,159.92,5.6277]
[1729401833821,23.776884,159.96,159.91,14.0703]
[1729401833822,23.776884,159.96,159.89,20.0]
[1729401834026,23.776884,159.96,159.93,14.0686]
[1729401834249,11.26371136,159.97,159.94,5.6267]
[1729401834435,11.95636894,159.97,159.94,5.6267]
[1729401835676,23.776884,159.96,159.94,5.6267]
[1729401840367,23.776884,159.96,159.95,5.6267]
[1729401842159,11.95636894,159.97,159.89,20.0]
[1729401842347,0.69265758,159.97,159.96,5.6264]
[1729401843343,22.4467,160.03,159.92,20.0]
[1729401844372,23.13927019,160.03,159.99,5.6251]
[1729401844745,23.776884,160.02,159.99,5.6251]
[1729401847980,23.776884,160.02,160.0,5.6249]
[1729401849145,23.776884,160.02,159.99,5.6253]
[1729401859779,23.776884,160.02,159.97,14.0651]
[1729401860181,23.776884,160.02,159.98,5.6256]
[1729401862687,23.776884,160.02,159.98,19.6897]
[1729401863067,23.776884,160.02,159.99,5.6253]
[1729401863265,0.69257019,160.03,159.96,20.0]
[1729401863463,0.69257019,160.03,159.98,20.0]
[1729401863670,0.69257019,160.03,159.99,14.0633]
[1729401863960,0.69257019,160.03,159.99,19.6886]
[1729401864791,23.776884,160.02,159.99,19.6886]
[1729401867183,23.776884,160.02,159.93,14.0342]
[1729401867386,29.401284,160.02,159.96,5.6262]
[1729401867982,29.401284,160.02,159.97,5.6259]
[1729401872104,23.776884,160.0,159.96,19.6921]
[1729401872310,24.46749351,160.0,159.96,19.6921]
[1729401873572,30.09249351,160.0,159.95,5.6267]
[1729401874891,30.09249351,160.0,159.93,14.0685]
[1729401874892,24.46749351,160.0,159.93,14.0685]
[1729401875208,30.09249351,160.0,159.94,5.6269]
[1729401876874,5.6257,159.98,159.93,19.6959]
[1729401877079,23.776884,159.97,159.93,19.6959]
[1729401877483,23.776884,159.97,159.89,14.0342]
[1729401877698,23.776884,159.97,159.9,20.0]
[1729401877896,24.52499977,159.97,159.9,20.0]
[1729401879409,24.52499977,159.97,159.93,5.6274]
[1729401879906,24.52499977,159.97,159.91,42.2112]
[1729401879907,15.161,159.95,159.91,5.628]
[1729401880113,6.37421577,159.97,159.84,20.4996]
[1729401880114,23.776884,159.96,159.92,5.6276]
[1729401881622,23.776884,159.96,159.86,0.1]
[1729401881623,0.74811577,159.97,159.91,19.6985]
[1729401881806,0.74811577,159.97,159.95,5.6266]
[1729401882723,0.74811577,159.97,159.94,25.627]
[1729401883009,0.74811577,159.97,159.94,5.627]
[1729401892808,0.74811577,159.97,159.96,5.6264]
[1729401894316,21.7985,160.03,159.96,20.0]
[1729401894513,21.7985,160.03,159.98,14.064]
[1729401894715,27.4224,160.03,159.98,14.064]
[1729401895932,23.776884,160.02,159.98,19.6896]
[1729401896235,24.52500174,160.02,159.98,19.6896]
[1729401899810,24.52500174,160.02,159.98,14.064]
[1729401900022,5.6249,160.01,159.95,5.6266]
[1729401900225,23.776884,160.0,159.95,5.6266]
[1729401901254,23.776884,160.0,159.94,14.0672]
[1729401901553,24.52499015,159.98,159.94,14.0672]
[1729401902354,24.52499015,159.98,159.94,19.6942]
[1729401903631,24.52499015,159.98,159.91,28.1408]
[1729401903632,24.62499015,159.98,159.89,14.0342]
[1729401903855,24.62499015,159.98,159.83,0.7210045]
[1729401903856,39.895284,159.96,159.91,14.0703]
[1729401905366,5.6273,159.94,159.87,39.7029]
[1729401905566,23.776884,159.93,159.89,20.0]
[1729401905854,23.776884,159.94,159.89,20.0]
[1729401906252,23.776884,159.94,159.88,20.0]
[1729401906555,24.47913429,159.94,159.9,5.6285]
[1729401906767,24.47913429,159.94,159.88,20.0]
[1729401906939,24.47913429,159.94,159.91,5.6279]
[1729401914464,16.1184,159.96,159.93,5.6274]
[1729401914639,6.6507,159.97,159.93,5.6274]
[1729401915672,23.776884,159.96,159.93,5.6274]
[1729401916770,23.776884,159.97,159.94,5.627]
[1729401917765,0.74810615,159.98,159.9,20.0]
[1729401917974,0.74810615,159.98,159.9,20.1]
[1729401918254,0.74810615,159.98,159.97,5.626]
[1729401918768,6.2383,160.01,159.91,6.2623]
[1729401918769,25.76571508,160.04,160.0,5.6248]
[1729401920050,23.776884,160.03,160.0,5.6248]
[1729401920362,30.10275795,160.03,159.99,14.0632]
[1729401926361,23.776884,160.01,159.93,20.0]
[1729401926565,23.776884,160.01,159.97,5.626]
[1729401927575,23.776884,160.02,159.99,5.6253]
[1729401927984,0.70197395,160.03,159.94,34.2342]
[1729401928193,0.70197395,160.03,160.01,5.6244]
[1729401928480,5.6226,160.07,160.02,5.6242]
[1729401929782,23.776884,160.06,160.02,5.6242]
[1729401929987,24.45608007,160.06,160.02,5.6242]
[1729401931571,24.45608007,160.06,160.01,14.0612]
[1729401931780,5.6232,160.05,160.01,14.0612]
[1729401932082,23.776884,160.04,160.01,14.0612]
[1729401937161,5.6232,160.05,160.01,14.0612]
[1729401937162,23.776884,160.05,160.01,19.6856]
[1729401937387,23.776884,160.05,160.01,14.0612]
[1729401939689,23.776884,160.05,160.01,19.6858]
[1729401944694,23.776884,160.05,160.02,5.6242]
[1729401956241,23.776884,160.05,159.96,28.232]
[1729401956242,23.776884,160.05,159.97,20.0]
[1729401956414,23.776884,160.05,160.03,5.6237]
[1729401956718,23.776884,160.05,159.97,20.0]
[1729401956719,0.67919607,160.06,159.97,20.0]
[1729401956888,0.67919607,160.06,160.03,5.6236]
[1729401959514,23.776884,160.05,160.01,5.6246]
[1729401960010,23.776884,160.05,160.03,5.6238]
[1729401960212,0.67919607,160.06,160.03,5.6238]
[1729401963795,23.776884,160.05,160.02,14.0604]
[1729401963991,23.776884,160.05,160.02,19.6846]
[1729401964194,23.68207703,160.05,160.02,19.6846]
[1729401965011,29.30547703,160.05,159.99,5.6251]
[1729401965396,5.6235,160.04,159.99,5.6251]
[1729401966298,23.776884,160.03,159.99,5.6251]
[1729401966498,24.47192887,160.03,159.99,5.6251]
[1729401967696,24.3877669,160.03,159.99,5.6251]
[1729401968418,30.0119669,160.03,159.98,14.064]
[1729401969192,30.0119669,160.03,159.98,19.6895]
[1729401969403,5.6245,160.02,159.96,5.6263]
[1729401969818,23.776884,160.01,159.96,5.6263]
[1729401970523,23.776884,160.01,159.97,5.6259]
[1729401971094,23.69261669,160.01,159.97,5.6259]
[1729401971407,5.6251,160.0,159.95,19.6934]
[1729401973310,23.776884,159.99,159.95,19.6934]
[1729401973522,24.47204195,159.99,159.95,19.6934]
[1729401974617,24.37723498,159.99,159.95,19.6934]
[1729401978229,24.29296767,159.99,159.95,19.6934]
[1729401980633,24.29296767,159.99,159.96,5.6263]
[1729401991111,24.29296767,159.99,159.98,5.6257]
[1729401991436,0.69515795,159.99,159.98,5.6257]
[1729401996929,23.776884,160.01,159.98,5.6257]
[1729401999527,23.776884,160.01,159.96,14.0653]
[1729401999836,23.776884,160.01,159.96,19.6913]
[1729402000244,23.776884,160.01,159.97,5.6258]
[1729402004645,15.6964,160.02,159.93,28.1373]
[1729402004831,0.69504487,160.03,159.94,20.0]
[1729402005149,0.69504487,160.03,160.0,5.6246]
[1729402011226,0.69504487,160.03,159.96,20.0]
[1729402011528,0.69504487,160.03,160.02,5.6242]
[1729402024055,23.776884,160.02,159.99,5.6252]
[1729402024653,23.776884,160.02,159.98,14.0641]
[1729402024839,29.401184,160.02,159.98,14.0641]
[1729402025450,23.776884,160.02,159.98,19.6896]
[1729402045448,23.776884,160.02,159.99,5.6252]
[1729402047668,23.776884,160.02,159.98,19.6897]
[1729402057089,23.776884,160.0,159.89,53.67914688]
[1729402057264,24.56307052,160.0,159.96,5.6262]
[1729402058273,23.776884,160.0,159.96,5.6262]
[1729402059388,24.56296387,160.0,159.96,5.6262]
[1729402061391,24.56296387,160.0,159.92,47.8363]
[1729402061562,23.776884,160.0,159.99,5.6253]
[1729402061767,23.776884,160.0,159.98,19.6894]
[1729402063098,24.56305684,160.0,159.98,14.0638]
[1729402063772,24.56305684,160.0,159.95,5.6267]
[1729402070695,24.56305684,160.0,159.94,19.694]
[1729402070999,23.776884,159.98,159.94,19.694]
[1729402073499,23.776884,159.95,159.91,5.6281]
[1729402073878,5.6272,159.94,159.88,5.629]
[1729402074078,23.776884,159.95,159.85,28.1504]
[1729402074279,24.5632443,159.95,159.91,5.628]
[1729402080606,24.5632443,159.95,159.87,47.8512]
[1729402080806,24.5632443,159.95,159.93,5.6271]
[1729402081622,0.7863603,159.95,159.94,5.6271]
[1729402083410,23.776884,159.99,159.96,5.6262]
[1729402087592,23.776884,159.99,159.95,14.0666]
[1729402087790,27.97517284,160.0,159.92,5.6275]
[1729402087791,23.776884,159.97,159.92,5.6275]
[1729402087994,24.49633679,159.97,159.92,5.6275]
[1729402089106,24.49633679,159.97,159.95,5.6267]
[1729402089910,0.71945279,159.97,159.96,5.6264]
[1729402097417,24.49633679,159.97,159.95,14.0665]
[1729402097598,23.776884,159.96,159.93,5.6274]
[1729402098725,23.776884,159.96,159.94,5.627]
[1729402099918,29.403284,159.96,159.92,14.0695]
[1729402100428,23.776884,159.94,159.89,14.0721]
[1729402100608,29.403984,159.94,159.89,19.7009]
[1729402101807,30.12362013,159.94,159.89,19.7009]
[1729402103802,24.49652013,159.94,159.83,28.7749045]
[1729402104002,5.6288,159.9,159.85,14.0748]
[1729402104208,23.776884,159.89,159.85,14.0748]
[1729402104408,23.776884,159.89,159.86,5.6299]
[1729402104616,23.776884,159.9,159.86,5.6299]
[1729402105430,23.776884,159.91,159.86,5.6299]
[1729402106623,24.41361539,159.91,159.86,5.6299]
[1729402106927,23.776884,159.87,159.83,0.6210045]
[1729402107108,23.776884,159.87,159.83,6.2519045]
[1729402108524,23.776884,159.88,159.85,5.6301]
[1729402108917,15.2097,159.9,159.86,5.6296]
[1729402109121,15.2097,159.9,159.85,14.075]
[1729402109432,15.2097,159.9,159.87,5.6295]
[1729402109609,0.63673139,159.91,159.89,5.6286]
[1729402116358,23.776884,159.9,159.88,14.0725]
[1729402130354,24.45595152,159.9,159.88,14.0725]
[1729402135157,24.45595152,159.9,159.86,5.6298]
[1729402140261,30.08465152,159.9,159.85,19.7057]
[1729402140451,23.776884,159.88,159.85,19.7057]
[1729402143170,23.776884,159.88,159.85,14.0755]
[1729402143743,23.776884,159.88,159.85,19.7057]
[1729402144451,23.776884,159.88,159.83,0.6210045]
[1729402144850,23.776884,159.88,159.84,5.6305]
[1729402165479,23.776884,159.88,159.87,5.6295]
[1729402166167,23.776884,159.89,159.86,19.7043]
[1729402171487,23.776884,159.89,159.86,14.0745]
[1729402179763,23.776884,159.89,159.86,19.7044]
[1729402180868,23.776884,159.89,159.86,14.0745]
[1729402182191,23.776884,159.89,159.87,5.6293]
[1729402184577,23.776884,159.89,159.86,19.7043]
[1729402184787,23.776884,159.89,159.86,14.0745]
[1729402187595,23.776884,159.89,159.86,19.7043]
[1729402188283,23.776884,159.89,159.88,5.6292]
[1729402195511,23.776884,159.89,159.87,19.703]
[1729402198806,23.776884,159.89,159.87,14.0735]
[1729402200196,23.776884,159.89,159.87,19.703]
[1729402201622,23.776884,159.89,159.85,5.6302]
[1729402201786,29.405784,159.89,159.84,14.0765]
[1729402202208,29.405784,159.89,159.84,19.7068]
[1729402202920,23.776884,159.89,159.85,5.6302]
[1729402203086,23.776884,159.87,159.83,0.6210045]
[1729402203285,23.776884,159.85,159.83,0.6210045]
[1729402208502,24.44599716,159.85,159.83,0.6210045]
[1729402224215,30.07649716,159.85,159.83,0.6210045]
[1729402232129,24.44599716,159.85,159.83,0.6210045]
[1729402239914,29.407484,159.84,159.83,0.6210045]
[1729402246116,23.776884,159.84,159.83,0.6210045]
[1729402249617,0.66911316,159.85,159.83,6.2516045]
[1729402250847,23.776884,159.84,159.83,6.2516045]
[1729402253337,23.776884,159.84,159.83,0.6210045]
[1729402264758,29.407484,159.84,159.83,0.6210045]
[1729402268352,23.776884,159.84,159.83,0.6210045]
[1729402275960,0.66911316,159.85,159.83,0.6210045]
[1729402276771,0.66911316,159.85,159.83,6.2519045]
[1729402277260,23.776884,159.84,159.83,6.2519045]
[1729402278561,23.776884,159.84,159.83,0.6210045]
[1729402280757,0.66911316,159.85,159.83,6.2519045]
[1729402281969,23.776884,159.84,159.83,0.6210045]
[1729402291668,0.66911316,159.85,159.84,5.6306]
[1729402302585,23.776884,159.89,159.84,5.6306]
[1729402303672,23.776884,159.9,159.86,5.6298]
[1729402306888,29.405684,159.9,159.85,14.0755]
[1729402314671,29.405684,159.9,159.85,19.7057]
[1729402325090,5.6267,159.95,159.89,5.6288]
[1729402326175,23.776884,159.94,159.89,5.6288]
[1729402334195,23.776884,159.9,159.86,14.0748]
[1729402334807,23.776884,159.91,159.86,14.0748]
[1729402334987,23.776884,159.89,159.86,14.0748]
[1729402338685,23.776884,159.89,159.86,19.7046]
[1729402339109,23.776884,159.9,159.86,19.7046]
[1729402339690,23.776884,159.9,159.86,14.0748]
[1729402342105,23.776884,159.89,159.85,5.6302]
[1729402342700,23.776884,159.89,159.84,5.6305]
[1729402342886,29.405884,159.89,159.84,5.6305]
[1729402347009,22.233,159.92,159.85,14.075]
[1729402347221,8.99089453,159.93,159.87,5.6295]
[1729402348402,23.776884,159.92,159.87,5.6295]
[1729402349304,23.776884,159.92,159.88,5.6292]
[1729402354795,23.776884,159.92,159.83,0.7210045]
[1729402355004,23.776884,159.92,159.89,5.6287]
[1729402356617,23.776884,159.92,159.84,48.2531]
[1729402356923,8.99089453,159.93,159.9,5.6284]
[1729402357115,8.99089453,159.93,159.87,20.0]
[1729402357309,8.99089453,159.93,159.9,5.6282]
[1729402358696,23.776884,159.92,159.83,6.8919045]
[1729402358894,23.776884,159.92,159.87,5.6295]
[1729402359323,23.776884,159.92,159.83,6.8919045]
[1729402359527,23.776884,159.92,159.88,5.6291]
[1729402365008,8.99089453,159.93,159.9,5.6284]
[1729402372230,8.99089453,159.93,159.92,5.6278]
[1729402386410,8.99089453,159.93,159.91,14.0703]
[1729402388645,8.99089453,159.93,159.87,20.0]
[1729402396632,8.99089453,159.93,159.87,20.1]
[1729402397151,5.6257,159.98,159.87,0.2]
[1729402397527,5.6257,159.98,159.87,0.1]
[1729402397731,5.6257,159.98,159.87,0.2]
[1729402398329,23.776884,159.97,159.87,0.2]
[1729402403255,23.776884,159.97,159.87,0.1]
[1729402405443,29.402884,159.98,159.86,0.2]
[1729402406052,29.402884,159.98,159.86,0.1]
[1729402406359,29.402884,159.98,159.86,0.2]
[1729402406541,23.776884,159.98,159.86,0.2]
[1729402406730,23.776884,159.96,159.86,0.2]
[1729402409843,21.2781,159.99,159.87,14.2342]
[1729402410159,8.98780038,160.05,159.92,0.1]
[1729402410160,6.2202,160.03,159.92,0.1]
[1729402410370,21.2781,160.03,159.92,0.1]
[1729402410551,21.2781,160.03,159.94,0.1]
[1729402411263,21.2781,160.03,159.93,20.1]
[1729402411463,21.2781,160.03,159.94,0.1]
[1729402412145,21.2781,160.03,159.95,0.1]
[1729402414340,5.6242,160.02,159.94,0.1]
[1729402414538,21.2781,160.03,159.94,0.1]
[1729402414739,23.776884,160.02,159.93,20.0]
[1729402415243,23.776884,160.02,159.93,20.1]
[1729402415454,21.2781,160.03,159.95,0.1]
[1729402416651,21.2781,160.03,159.94,0.1]
[1729402417241,21.2781,160.03,159.95,0.1]
[1729402417441,21.2781,160.03,159.94,0.2]
[1729402417963,21.2781,160.03,159.94,0.1]
[1729402419746,21.2781,160.03,159.95,0.1]
[1729402423046,15.0579,160.03,159.95,0.2]
[1729402425667,15.0579,160.03,159.95,0.1]
[1729402425866,15.0579,160.03,159.95,0.2]
[1729402426244,23.776884,160.05,159.96,0.1]
[1729402428655,23.776884,160.06,159.96,0.1]
[1729402429867,22.2325,160.07,159.98,0.1]
[1729402430251,22.2325,160.07,159.97,20.1]
[1729402430252,22.2325,160.07,159.99,0.1]
[1729402431589,22.2325,160.07,160.0,0.1]
[1729402432276,5.6215,160.1,160.02,0.1]
[1729402432277,6.2647,160.1,160.02,0.1]
[1729402433085,6.2647,160.1,160.01,0.2]
[1729402434073,6.2647,160.1,160.02,0.1]
[1729402434671,6.2647,160.1,160.01,0.2]
[1729402434975,23.776884,160.09,159.99,0.1]
[1729402435151,29.398984,160.09,159.98,0.1]
[1729402437061,5.6221,160.08,159.98,20.1]
[1729402439782,5.623,160.06,159.96,0.1]
[1729402439959,23.776884,160.05,159.95,0.1]
[1729402440158,23.776884,160.05,159.95,0.2]
[1729402440367,23.776884,160.05,159.96,0.2]
[1729402441883,23.776884,160.05,159.96,0.1]
[1729402442088,23.776884,160.05,159.96,0.2]
[1729402445485,23.776884,160.05,159.96,0.1]
[1729402445787,23.776884,160.05,159.96,0.2]
[1729402447689,30.411884,160.05,159.96,0.2]
[1729402447868,30.411884,160.05,159.96,0.1]
[1729402448075,30.411884,160.05,159.96,0.2]
[1729402448280,30.411884,160.05,159.96,0.1]
[1729402448473,30.411884,160.05,159.96,0.2]
[1729402450289,30.411884,160.05,159.95,20.1]
[1729402450483,36.035284,160.05,159.95,20.1]
[1729402450667,36.035284,160.05,159.95,0.1]
[1729402451390,36.035284,160.05,159.95,0.2]
[1729402451691,36.035284,160.05,159.96,0.1]
[1729402453878,36.035284,160.05,159.95,0.1]
[1729402454401,23.776884,160.03,159.94,20.0]
[1729402454579,23.776884,160.03,159.93,20.2]
[1729402456173,29.400784,160.03,159.93,20.2]
[1729402458693,15.1643,160.04,159.96,0.1]
[1729402459194,15.1643,160.04,159.95,0.2]
[1729402459403,15.1643,160.04,159.96,0.1]
[1729402461409,15.1643,160.04,159.96,0.2]
[1729402462805,15.1643,160.04,159.95,0.2]
[1729402463097,15.1643,160.04,159.96,0.1]
[1729402463293,15.1643,160.04,159.96,0.2]
[1729402465594,15.1643,160.04,159.94,0.2]
[1729402466507,15.1643,160.04,159.94,0.1]
[1729402466508,23.776884,160.03,159.94,0.1]
[1729402466706,23.776884,160.03,159.94,0.2]
[1729402467809,23.776884,160.03,159.94,0.1]
[1729402468998,23.776884,160.03,159.93,27.5275799]
[1729402469607,23.776884,160.03,159.94,0.2]
[1729402469897,23.776884,160.03,159.94,0.1]
[1729402470083,23.776884,160.03,159.94,0.2]
[1729402478392,23.776884,160.03,159.94,0.1]
[1729402478597,29.400884,160.03,159.93,0.1]
[1729402479192,29.400884,160.03,159.93,0.2]
[1729402489320,29.400884,160.03,159.93,0.1]
[1729402489513,29.400884,160.03,159.93,0.2]
[1729402491390,29.400884,160.03,159.93,0.1]
[1729402491595,29.400884,160.03,159.93,0.2]
[1729402496720,23.776884,160.03,159.94,0.1]
[1729402497307,20.7879,160.04,159.97,0.1]
[1729402497308,15.1643,160.04,159.97,0.1]
[1729402513435,15.1643,160.04,159.96,0.1]
[1729402514437,15.1643,160.04,159.95,20.1]
[1729402514625,15.1643,160.04,159.96,0.1]
[1729402514825,15.1643,160.04,159.95,20.2]
[1729402515225,15.1643,160.04,159.95,20.1]
[1729402515427,15.1643,160.04,159.95,20.2]
[1729402515639,15.1643,160.04,159.95,20.1]
[1729402515815,15.1643,160.04,159.95,20.2]
[1729402517539,15.1643,160.04,159.98,0.1]
[1729402520345,6.635,160.05,159.98,0.1]
[1729402521433,6.635,160.05,159.97,20.1]
[1729402521653,6.635,160.05,159.98,0.1]
[1729402526429,23.776884,160.07,159.98,0.1]
[1729402527242,15.1531,160.08,159.98,0.2]
[1729402527451,15.1531,160.08,159.99,0.1]
[1729402529643,15.1531,160.08,159.98,0.1]
[1729402530157,15.1531,160.08,159.98,0.2]
[1729402530331,15.1531,160.08,159.99,0.1]
[1729402532851,15.1531,160.08,159.99,0.2]
[1729402535540,15.81905407,160.08,159.99,0.2]
[1729402536348,15.81905407,160.08,159.99,0.1]
[1729402542134,15.81905407,160.08,159.98,0.2]
[1729402542339,15.81905407,160.08,159.98,0.1]
[1729402542557,23.776884,160.07,159.97,20.0]
[1729402542764,23.776884,160.07,159.97,20.1]
[1729402543257,23.776884,160.07,159.96,14.1342]
[1729402543456,23.776884,160.07,159.97,0.2]
[1729402544661,23.776884,160.07,159.97,20.2]
[1729402547239,23.776884,160.07,159.97,20.1]
[1729402547846,23.776884,160.07,159.97,20.2]
[1729402560574,23.776884,160.07,159.98,0.1]
[1729402565557,15.81905407,160.08,159.99,0.1]
[1729402565771,15.81905407,160.08,159.99,0.2]
[1729402566378,15.81905407,160.08,160.0,0.1]
[1729402566561,15.81905407,160.08,159.99,0.2]
[1729402567980,15.81905407,160.08,159.97,6.31394064]
[1729402568278,23.776884,160.07,159.98,0.1]
[1729402568654,23.776884,160.07,159.97,0.1]
[1729402569258,23.776884,160.07,159.97,20.1]
[1729402569460,23.776884,160.07,159.96,14.1342]
[1729402569659,6.6389,160.06,159.97,0.1]
[1729402569865,23.776884,160.05,159.97,0.1]
[1729402570164,24.40702152,160.05,159.97,0.1]
[1729402572478,24.40702152,160.05,159.95,20.2]
[1729402572670,0.63013752,160.05,159.97,0.1]
[1729402573178,0.63013752,160.05,159.96,0.1]
[1729402573386,0.63013752,160.05,160.0,0.1]
[1729402573982,0.63013752,160.05,159.98,0.1]
[1729402574679,0.63013752,160.05,159.99,0.1]
[1729402577188,0.63013752,160.05,159.98,0.1]
[1729402577496,0.63013752,160.05,159.99,0.1]
[1729402578687,16.1527,160.04,159.97,0.1]
[1729402578985,6.4109,160.03,159.97,0.1]
[1729402579202,6.4109,160.03,159.96,0.1]
[1729402579665,6.4109,160.03,159.95,0.1]
[1729402579866,6.4109,160.03,159.93,11.48620734]
[1729402580189,6.4109,160.03,159.94,0.1]
[1729402580375,6.4109,160.03,159.93,11.48620734]